Cogmind - Beta 17 @@@ ROGUE MODE // 2026.07.16 @ 11:28:06 // Winter2019/RPGLIKE Player: Gallgagger Result: Self-destructed Performance ------------- Evolutions (1) 500 Regions Visited (5) 1000 Robots Destroyed (7) 35 Value Destroyed (107) 107 Prototype IDs (23) 460 Alien Tech Used (0) 0 Bonus (360) 360 TOTAL SCORE: 2462 Bonus ------- Pacifist 200 Aligned with FarCom 300 Friendly Fire -140 Cogmind --------- Core Integrity 590/600 Matter 300/300 Energy 160/160 System Corruption 0% Temperature Cool (0) Movement Flying (37) Location -8/Mines Parts ------- > --- POWER (1) -------- Light Nuclear Core > --- PROPULSION (2) --- Flight Unit Flight Unit > --- UTILITY (1) ------ (None) > --- WEAPON (1) ------- Makeshift Spear > --- INVENTORY (1) ---- Field Lobotomy Kit (5) Peak State ------------ > --- POWER ------------ Light Nuclear Core > --- PROPULSION ------- Flight Unit Flight Unit > --- UTILITY ---------- (None) > --- WEAPON ----------- Makeshift Spear > --- INVENTORY -------- Field Lobotomy Kit [Rating: 10] Favorites ----------- Power Light Nuclear Core Power Core Light Nuclear Core Propulsion Flight Unit Flight Unit Flight Unit Utility None Weapon Makeshift Spear Piercing Weapon Makeshift Spear Build | -11 -10 -9 -9 -9 -8 ------- Run | Yrd Mat Mat Min Exi Min Slots Evolved 1 | . . . 1 . . Power . | . . . . . . Propulsion 1 | . . . 1 . . Utility . | . . . . . . Weapon . | . . . . . . Parts Attached 4 | . . . 4 . . Power 1 | . . . 1 . . Engine . | . . . . . . Core 1 | . . . 1 . . Reactor . | . . . . . . Propulsion 2 | . . . 2 . . Treads . | . . . . . . Leg . | . . . . . . Wheel . | . . . . . . Hover . | . . . . . . Flight 2 | . . . 2 . . Utility . | . . . . . . Device . | . . . . . . Storage . | . . . . . . Processor . | . . . . . . Hackware . | . . . . . . Protection . | . . . . . . Artifact . | . . . . . . Weapon 1 | . . . 1 . . Energy Gun . | . . . . . . Energy Cannon . | . . . . . . Ballistic Gun . | . . . . . . Ballistic Cannon . | . . . . . . Launcher . | . . . . . . Special Weapon . | . . . . . . Impact Weapon . | . . . . . . Slashing Weapon . | . . . . . . Piercing Weapon 1 | . . . 1 . . Special Melee Weapon . | . . . . . . Unidentified Prototypes . | . . . . . . Parts Lost . | . . . . . . Power . | . . . . . . Propulsion . | . . . . . . Utility . | . . . . . . Weapon . | . . . . . . Highest Loss Streak . | . . . . . . To Critical Strikes . | . . . . . . Average Backups . | . . . . . 1 Power . | . . . . . . Propulsion . | . . . . . . Utility . | . . . . . . Weapon . | . . . . . . Tool/Special . | . . . . . . Unused Backups 1 | . . . . . 1 Power . | . . . . . . Propulsion . | . . . . . . Utility . | . . . . . . Weapon . | . . . . . . Tool/Special 1 | . . . . . 1 Average Slot Usage (%) 45 | . . . 43 80 80 Core 9 | . . . 7 20 20 Flight 21 | . . . 19 40 40 Piercing Weapon 14 | . . . 15 20 20 Peak Build Rating 10 | . . . 9 10 10 Average Rating 5 | . . . 5 9 10 On Entrance 3 | . . . . 9 10 Avg Prop Armor Cover (%) . | . . . . . . Naked Turns 123 | . 27 23 73 . . Heaviest Build 7 | . . . 7 7 7 Greatest Support 8 | 3 3 3 8 8 8 Greatest Overweight (x) . | . . . . . . Average Overweight (x) . | . . . . . . Largest Inventory Capacity 1 | . . . . 1 1 Average Capacity . | . . . . . 1 Most Carried 1 | . . . . 1 1 Average Carried . | . . . . . 1 Final Capacity 1 | . . . . 1 1 Final Carried 1 | . . . . 1 1 Class Distribution -------------------- 100% | Mutant Dominant Class ---------------- Mutant | -10/Materials Mutant | -9/Materials Mutant | -9/Mines Mutant | -9/Exiles Mutant | -8/Mines Resources | -11 -10 -9 -9 -9 -8 ----------- Run | Yrd Mat Mat Min Exi Min Matter Collected 238 | 48 . . 190 . . Remotely . | . . . . . . Salvage Created 77 | . . . 77 . . Parts 15 | . . . 15 . . Haulers Intercepted . | . . . . . . Recyclers Shooed . | . . . . . . Parts Field Recycled . | . . . . . . Retrieved Matter . | . . . . . . Parts Self-Destructed . | . . . . . . Prevented . | . . . . . . Parts Restored . | . . . . . . Kills | -11 -10 -9 -9 -9 -8 ------- Run | Yrd Mat Mat Min Exi Min Combat Hostiles Destroyed 7 | . . . 7 . . Melee 7 | . . . 7 . . Classes Destroyed 2 | . . . 2 . . Swarmer 6 | . . . 6 . . Grunt 1 | . . . 1 . . Best Kill Streak 3 | . . . 3 . . Combat Bots Only 3 | . . . 3 . . Max Kills in Single Turn 1 | . . . 1 . . Gunslinging . | . . . . . . Exploded . | . . . . . . Melee 1 | . . . 1 . . Uniques/NPCs Destroyed . | . . . . . . Combat | -11 -10 -9 -9 -9 -8 -------- Run | Yrd Mat Mat Min Exi Min Hostile Shots Fired 33 | . 4 . 29 . . Missed 14 | . 2 . 12 . . Hits 19 | . 2 . 17 . . Projectile 19 | . 2 . 17 . . Critical Strikes 1 | . . . 1 . . Damage Taken 191 | . 29 . 162 . . Core 181 | . 29 . 152 . . Absorbed by Shields . | . . . . . . Redirected to Core 35 | . . . 35 . . Core Remaining (%) 97 | 100 95 . . . . Volleys Fired . | . . . . . . Largest . | . . . . . . Hottest . | . . . . . . Shots Fired . | . . . . . . Gun . | . . . . . . Cannon . | . . . . . . Launcher . | . . . . . . Special . | . . . . . . Kinetic . | . . . . . . Thermal . | . . . . . . Explosive . | . . . . . . Electromagnetic . | . . . . . . Robot Hit Streak . | . . . . . . Robot Miss Streak . | . . . . . . Penetration Max . | . . . . . . Secondary Targets . | . . . . . . Shots Hit Robots 9 | . . . 9 . . Core Hits 6 | . . . 6 . . Critical Kills . | . . . . . . Critical Parts Destroyed . | . . . . . . Critical Strikes 1 | . . . 1 . . Impale 1 | . . . 1 . . Melee Attacks 17 | . . . 16 1 . Impact . | . . . . . . Slashing . | . . . . . . Piercing 17 | . . . 16 1 . Sneak Attacks 2 | . . . 2 . . Combat Hostiles . | . . . . . . Follow-up Attacks . | . . . . . . Damage Inflicted 363 | . 16 . 347 . . Guns . | . . . . . . Cannons . | . . . . . . Explosions . | . . . . . . Melee 347 | . . . 347 . . Ramming 16 | . 16 . . . . Kinetic . | . . . . . . Thermal . | . . . . . . Explosive . | . . . . . . Electromagnetic . | . . . . . . Impact . | . . . . . . Slashing . | . . . . . . Piercing 347 | . . . 347 . . Highest Corruption . | . . . . . . Average Corruption . | . . . . . . Corruption Purged . | . . . . . . Corruption Blocked . | . . . . . . Overload Shots . | . . . . . . Overflow Damage 13 | . . . 13 . . Projectiles . | . . . . . . Explosions . | . . . . . . Melee 13 | . . . 13 . . Knockbacks . | . . . . . . Impact . | . . . . . . Kinetic . | . . . . . . Secondary . | . . . . . . Self-Inflicted Damage 8 | . 8 . . . . Shots . | . . . . . . Rammed 1 | . 1 . . . . Targets Rammed 1 | . 1 . . . . Kicked . | . . . . . . Crushed . | . . . . . . Highest Temperature . | . . . . . . Average Temperature . | . . . . . . Received Heat Transfer 30 | . 12 . 18 . . Siege Activations . | . . . . . . Martial Activations . | . . . . . . Shielding Activations . | . . . . . . Robots Disrupted . | . . . . . . Combat Hostiles . | . . . . . . Robots Corrupted . | . . . . . . Combat Hostiles . | . . . . . . Parts Fried . | . . . . . . Impact Corruptions . | . . . . . . Robots Melted . | . . . . . . Combat Hostiles . | . . . . . . Parts Melted . | . . . . . . Heat Transferred . | . . . . . . Parts Sabotaged . | . . . . . . Parts Stolen . | . . . . . . Parts Stripped . | . . . . . . Power Chain Reactions . | . . . . . . Alert | -11 -10 -9 -9 -9 -8 ------- Run | Yrd Mat Mat Min Exi Min Maximum Alert Level . | . . . . . . Low Security (%) 100 | 100 100 100 100 . 100 Level 1 . | . . . . . . Level 2 . | . . . . . . Level 3 . | . . . . . . Level 4 . | . . . . . . Level 5 . | . . . . . . High Security . | . . . . . . Max Security . | . . . . . . Peak Influence 160 | . . . 160 . . Initial . | . . . . . . Average 54 | . . . 67 . . Influence Increases 200 | . . . 200 . . Destroy 0b10 Robot/C 140 | . . . 140 . . Destroy Leader 30 | . . . 30 . . Lose Combat Pursuer 30 | . . . 30 . . Influence Decreases 200 | . . . 80 120 . Entered New Map 120 | . . . . 120 . Time Decay 80 | . . . 80 . . Squads Dispatched 2 | . 1 1 . . . Investigation 1 | . 1 . . . . Extermination . | . . . . . . Reinforcement 1 | . . 1 . . . Assault . | . . . . . . Garrison . | . . . . . . Intercept . | . . . . . . Searches Triggered . | . . . . . . Construction Impeded . | . . . . . . Haulers Reinforced . | . . . . . . Active Scanning Responses . | . . . . . . Cargo Convoy Interrupts . | . . . . . . Stealth | -11 -10 -9 -9 -9 -8 --------- Run | Yrd Mat Mat Min Exi Min Distress Signals . | . . . . . . Communications Jammed . | . . . . . . Distress Signals . | . . . . . . Times Spotted 18 | . 3 1 9 2 3 Peak Tracking Total 10 | . 4 1 5 10 3 Tactical Retreats 3 | . . . 2 1 . Traps | -11 -10 -9 -9 -9 -8 ------- Run | Yrd Mat Mat Min Exi Min Traps Triggered . | . . . . . . Indirectly . | . . . . . . Trap Hack Attempts . | . . . . . . Triggered . | . . . . . . Disarmed . | . . . . . . Reprogrammed . | . . . . . . Reused . | . . . . . . Traps Extracted . | . . . . . . Installed . | . . . . . . Triggered . | . . . . . . Machines | -11 -10 -9 -9 -9 -8 ---------- Run | Yrd Mat Mat Min Exi Min Machines Disabled 2 | . . . . 2 . Max in Single Turn 1 | . . . . 1 . Machines Repaired . | . . . . . . Machines Dismantled . | . . . . . . Machines Sabotaged . | . . . . . . Overloaded Fab Kills . | . . . . . . Hacking | -11 -10 -9 -9 -9 -8 --------- Run | Yrd Mat Mat Min Exi Min Machines Accessed 2 | . 1 . . 1 . Terminals 1 | . 1 . . . . Fabricators . | . . . . . . Repair Stations . | . . . . . . Recycling Units . | . . . . . . Scanalyzers . | . . . . . . Garrison Access . | . . . . . . Total Hacks 6 | . 5 . . 1 . Successful 1 | . . . . 1 . Failed 5 | . 5 . . . . Catastrophic 2 | . 2 . . . . Database Lockouts . | . . . . . . Manual 6 | . 5 . . 1 . Terminals 5 | . 5 . . . . Fabricators . | . . . . . . Repair Stations . | . . . . . . Recycling Units . | . . . . . . Scanalyzers . | . . . . . . Garrison Access . | . . . . . . Terminal Hacks 1 | . . . . 1 . Proto ID Catalog 1 | . . . . 1 . Fabricator Hacks . | . . . . . . Repair Station Hacks . | . . . . . . Recycling Unit Hacks . | . . . . . . Scanalyzer . | . . . . . . Garrison Access Hacks . | . . . . . . Unauthorized Hacks . | . . . . . . Terminals . | . . . . . . Fabricators . | . . . . . . Repair Stations . | . . . . . . Recycling Units . | . . . . . . Scanalyzers . | . . . . . . Garrison Access . | . . . . . . Data Cores Recovered . | . . . . . . Used . | . . . . . . Hacking Detections 1 | . 1 . . . . Full Trace Events 1 | . 1 . . . . Feedback Events . | . . . . . . Feedback Blocked . | . . . . . . Robot Schematics Acquired . | . . . . . . Robots Built . | . . . . . . Authchips . | . . . . . . Time . | . . . . . . Total Robot Build Rating . | . . . . . . Part Schematics Acquired . | . . . . . . Parts Built . | . . . . . . Authchips . | . . . . . . Time . | . . . . . . Total Part Build Rating . | . . . . . . Part Studies Acquired . | . . . . . . Parts Repaired . | . . . . . . Time . | . . . . . . Parts Recycled . | . . . . . . Recycled Matter . | . . . . . . Retrieved Matter . | . . . . . . Retrieved Components . | . . . . . . Parts Scanalyzed . | . . . . . . Part Schematics Acquired . | . . . . . . Parts Damaged . | . . . . . . Bothacking | -11 -10 -9 -9 -9 -8 ------------ Run | Yrd Mat Mat Min Exi Min Used RIF Installer . | . . . . . . Robots Hacked . | . . . . . . Non-combat . | . . . . . . Combat . | . . . . . . Robot Hacks Applied . | . . . . . . Relay Couplers Released . | . . . . . . Fabnet Peak Effective % . | . . . . . . Robots Rewired . | . . . . . . Allies Hacked . | . . . . . . Hacks Repelled . | . . . . . . Allies | -11 -10 -9 -9 -9 -8 -------- Run | Yrd Mat Mat Min Exi Min Total Allies 1 | . . . 1 . . Largest Group 1 | . . . 1 1 . Highest-Rated Group 31 | . . . 31 31 . Highest-Rated Ally 31 | . . . 31 31 . Total Orders . | . . . . . . Ally Attacks 4 | . . . . 4 . Total Damage 42 | . . . . 42 . Kills 1 | . . . . 1 . Allies Corrupted . | . . . . . . Allies Melted . | . . . . . . Intel | -11 -10 -9 -9 -9 -8 ------- Run | Yrd Mat Mat Min Exi Min Active Infowar (turns) . | . . . . . . Robot Analysis Total . | . . . . . . Derelict Logs Recovered 3 | . . . 3 . . Drone Launches . | . . . . . . Drone Recoveries . | . . . . . . Exploration | -11 -10 -9 -9 -9 -8 ------------- Run | Yrd Mat Mat Min Exi Min Turns Passed 424 | 10 27 23 273 86 5 Spaces Moved 828 | 20 53 45 476 223 11 Core 334 | 20 53 45 216 . . Treads . | . . . . . . Legs . | . . . . . . Wheels . | . . . . . . Hover . | . . . . . . Flight 494 | . . . 260 223 11 Fastest Speed 37 | 50 50 50 37 37 37 Average Speed 42 | 50 50 50 43 37 37 Slowest Speed 50 | 50 50 50 50 37 37 Overloaded Moves . | . . . . . . Propulsion Burnouts . | . . . . . . Robots Hopped 6 | . . . 6 . . Potential Cave-ins . | . . . . . . Cave-ins Triggered . | . . . . . . Exploration Rate (%) 31 | 2 13 5 98 61 9 Regions Visited 5 Branch Regions 3 Pre-discovered Areas . | . . . . . . Known Exits Taken . | . . . . . . Unknown Exits Taken 5 | 1 1 1 1 1 . Scrap Searched 2 | . . . 2 . . Spaces Dug . | . . . . . . Terrain Destroyed . | . . . . . . Melee . | . . . . . . Projectile . | . . . . . . AOE . | . . . . . . Terrain Rammed . | . . . . . . Walls Destroyed . | . . . . . . Machines Disabled . | . . . . . . Actions | -11 -10 -9 -9 -9 -8 --------- Run | Yrd Mat Mat Min Exi Min Total 868 | 19 53 44 517 224 11 Wait 19 | . . . 19 . . Move 812 | 19 53 44 463 222 11 Hop 6 | . . . 6 . . Pick Up 1 | . . . . 1 . Fast Attach 4 | . . . 4 . . Attach . | . . . . . . Detach . | . . . . . . Swap . | . . . . . . Drop . | . . . . . . Fire . | . . . . . . Melee 17 | . . . 16 1 . Ram . | . . . . . . Kick . | . . . . . . Crush . | . . . . . . Escape Stasis . | . . . . . . Rewire . | . . . . . . Trap . | . . . . . . Miscellaneous 9 | . . . 9 . . Route ------- -11/Scrapyard -10/Materials -9/Materials -9/Mines (discovered 3 exits: [*Mat x2] / *Exi) -9/Exiles (discovered 2 exits: [*Min x2]) -8/Mines History --------- Turn | Location | Event 3 | -11/Scrapyard | Discovered new exit (range 15) 11 | -11/Scrapyard | Entered Materials 35 | -10/Materials | Discovered new exit (range 7) 38 | -10/Materials | Entered another Materials area 40 | -9/Materials | Reached level 2 51 | -9/Materials | Discovered new exit (range 16) 61 | -9/Materials | Entered Mines 129 | -9/Mines | A weapon hastily lodged in a ceiling crevice suddenly fell to the ground 143 | -9/Mines | Found a Scrap Suit stashed away for nefarious purposes 148 | -9/Mines | Discovered new exit (range 9) 160 | -9/Mines | Learned 8 Materials zone layouts 201 | -9/Mines | Learned 4 Materials zone layouts 212 | -9/Mines | Upgraded with Propulsion slot (x1) 247 | -9/Mines | Learned 2 Materials zone layouts 300 | -9/Mines | Discovered new exit (range 15) 305 | -9/Mines | Received a Mining Laser from a helpful Derelict 314 | -9/Mines | Deemed a non-threat by the Exiles lab entrance 314 | -9/Mines | Discovered new exit (range 5) 317 | -9/Mines | Build established: Mutant 334 | -9/Mines | Entered Exiles 334 | -9/Exiles | Accompanied by 1 ally 336 | -9/Exiles | Reached level 3 340 | -9/Exiles | Discovered new exit (range 15) 344 | -9/Exiles | Met 8R-AWN 350 | -9/Exiles | Met EX-HEX 360 | -9/Exiles | Met EX-BIN 366 | -9/Exiles | Aligned with FarCom system 366 | -9/Exiles | Given EX-Vault access code 375 | -9/Exiles | Opened EX-Vault 380 | -9/Exiles | Found Field Lobotomy Kit 388 | -9/Exiles | Warned to stay clear of 0b10 Research branches 400 | -9/Exiles | Met EX-DEC 405 | -9/Exiles | Attacked by the Exiles 415 | -9/Exiles | Discovered new exit (range 14) 420 | -9/Exiles | Left Exiles lab with Field Lobotomy Kit 420 | -9/Exiles | Entered Mines 425 | -8/Mines | Self-destructed Last Messages --------------- [CShell_errno=`10`] 00377_ Upgraded: Inventory Capacity (+1) 00380_ Acquired Field Lobotomy Kit. EX-BIN: Oh yeah, I'd suggest you stay away from the 0b10 Research branches, since the FarCom signals could be picked up there, but you're welcome to try if you really want to. And if we have to leave here due to unforeseen circumstances, don't worry the FarCom system will continue to maintain contact via our distributed network. EX-DEC: Ah I see we have a visitor. One wrong move in here and I'll invert your atomic chain! 00402_ EX-DEC: "Oops, I hope HEX didn't hear that..." 00404_ Machine disabled. 00405_ EXILES: Hostile robot within lab perimeter. Defensive protocols time, folks! 00407_ EX-DEC: "Let's see what this bad boy can do..." 00407_ EX-DEC deploys DAS Turret. 00415_ EXIT=FOUND LOCATION=UNKNOWN GOAL=ESCAPE Map ----- +----------------------------------------------------+ | ?????????????????????????????????????????????????? | | ?????????????????????????????????????????????????? | | ?????????????????????????????????????????????????? | | ?????????????????????????????????????????????????? | | ?????????????????????????????????????????????????? | | ?????????????????????????????????????????????????? | | ?????????????????????????????????????????????????? | | ?????????????????????????????????????????????????? | | ?????????????????????????????????????????????????? | | ??????????????????????#??????????????????????????? | | ??????????????????????# ?????????????????????????? | | ??????????????????????? ?????????????????????????? | | ??????????????????????# ###??????????????????????? | | ??????????????????????? #??????????????????????? | | ???????????????????????? #??????????????????????? | | ????????????????????????# #??????????????????????? | | ????????????????######### #########??????????????? | | ????????????????# #??????????????? | | ????????????????# #??????????????? | | ????????????????# """ """ """g #??????????????? | | ??????????????????""" """ """ #??????????????? | | ????????????????# """ """ """g #??????????????? | | ????????????????# l #??????????????? | | ????????????????# """ """ """ """ #??????????????? | | ??????????????????""" """ """ """ ?????????????? | | ??????????????????""" """@""" """ ????????????? | | ????????????????# ###????????????? | | ????????????????#################T#??????????????? | | ?????????????????????????????????????????????????? | | | | | | | | | | | | | | | | | | | | | | | | | | | | | | | | | | | | | | | | | | | +----------------------------------------------------+ Best States ------------- Heat Dissipation 25 Energy Generation 14 Energy Capacity 160 Matter Stores 300 Matter Capacity 300 Sight Range 16 Terrain Scan Density 10 Evasion (%) 62 Item Schematics ----------------- None Robot Schematics ------------------ None Fabricated ------------ Nothing Repaired ---------- Nothing Studied --------- None Alien Tech Used ----------------- None Achievements -------------- None Challenges ------------ None RPGLIKE | -11 -10 -9 -9 -9 -8 --------- Run | Yrd Mat Mat Min Exi Min Levels Raised 2 | . . 1 . 1 . XP Earned 6800 | 3000 100 1500 1350 350 500 XP Spent 2150 | . . . 1900 250 . Upgrades 6 | . . . 5 1 . Propulsion Slot 1 | . . . 1 . . Inventory Capacity 1 | . . . . 1 . Melee Accuracy 4 | . . . 4 . . Protomatter Created 57 | . . . 57 . . Integrity Restored 171 | . . . 171 . . Core 171 | . . . 171 . . Protomatter Decayed 43 | . . . . 43 . Game ------ Seed ThunderRingFemtoactuators Manual? 0 Play Time 00:03:28 Cumulative 668.0 hours Start 2026.07.16 @ 11:24:40 End 2026.07.16 @ 11:28:06 Sessions 1 Manual Loads 0 Difficulty Rogue Special Mode Winter2019/RPGLIKE Game No. 332 Rogue 178 Adventurer 154 Explorer 0 Win Type - Total 22 Types 4/5/4/3/2/1/0/1/1/1 Lore% 95 Gallery% 88 Achievement% 68 Wizard Run 0 Options --------- Layout 0 ASCII 0 Keyboard 0 Movement Numpad Keybinds 0 Fullscreen 2 Font 18/SmallcapsGlow Map View 76x50 Zoom Use 0% Tactical HUD 1 Map Filters NONE Filters NONE Steam 1 RUN: a3ce2c6d-c83a-4377-8c06-92ee9beba952